bitfinex/quotes_SOLUSD_20240909
["timestamp","ask_amount","ask_price","bid_price","bid_amount"]
[1725875904659,45.0,129.87,129.8,15.392]
[1725875906070,52.7001,129.87,129.79,6.6398]
[1725875906385,52.7001,129.87,129.79,22.58838541]
[1725875906589,45.0,129.87,129.79,22.58838541]
[1725875909882,68.342,129.87,129.79,6.6398]
[1725875910182,68.342,129.87,129.78,15.94858541]
[1725875910183,20.0,129.86,129.78,15.94858541]
[1725875910383,45.0,129.85,129.78,15.94858541]
[1725875912662,45.0,129.85,129.77,16.3383]
[1725875912874,45.0,129.85,129.78,35.94858541]
[1725875913567,45.0,129.85,129.78,20.0]
[1725875915683,45.0,129.85,129.79,15.94858541]
[1725875921186,45.0,129.85,129.78,20.0]
[1725875922367,45.0,129.85,129.79,15.94858541]
[1725875923491,20.0,129.86,129.79,15.94858541]
[1725875924894,45.0,129.85,129.79,15.94858541]
[1725875926292,45.0,129.85,129.77,16.3383]
[1725875926480,45.0,129.85,129.81,15.94858541]
[1725875927499,20.0,129.86,129.81,15.94858541]
[1725875930887,15.0738,129.9,129.83,15.94858541]
[1725875931191,45.0,129.89,129.83,15.94858541]
[1725875932291,15.0738,129.9,129.83,15.94858541]
[1725875932593,20.0,129.89,129.83,15.94858541]
[1725875933494,45.0,129.88,129.83,15.94858541]
[1725875939894,45.0,129.88,129.81,31.17478541]
[1725875943100,20.0,129.87,129.81,31.17478541]
[1725875943300,45.0,129.86,129.8,6.6637]
[1725875943488,45.0,129.86,129.79,15.94858541]
[1725875944093,45.0,129.87,129.79,15.94858541]
[1725875945802,45.0,129.87,129.8,20.0]
[1725875946192,45.0,129.87,129.79,15.94858541]
[1725875946787,52.7001,129.87,129.79,15.94858541]
[1725875947901,15.8994,129.86,129.78,15.9617]
[1725875948202,45.0,129.85,129.78,31.91028541]
[1725875952488,52.7012,129.85,129.77,22.21108541]
[1725875954509,52.7012,129.85,129.75,16.5953]
[1725875954804,52.7012,129.85,129.77,15.94858541]
[1725875956588,52.7012,129.85,129.75,16.5953]
[1725875956788,20.0,129.84,129.77,15.94858541]
[1725875957017,45.0,129.83,129.77,15.94858541]
[1725875960818,45.0,129.83,129.79,15.94858541]
[1725875972288,15.8994,129.86,129.79,15.94858541]
[1725875972495,15.8994,129.86,129.81,15.94858541]
[1725875983217,15.8994,129.86,129.78,6.2856]
[1725875983428,45.0,129.85,129.81,15.94858541]
[1725875984126,45.0,129.85,129.79,20.0]
[1725875984326,45.0,129.85,129.81,15.94858541]
[1725875997738,15.8994,129.86,129.81,15.94858541]
[1725875998036,15.8994,129.86,129.75,23.0081]
[1725875998239,15.8994,129.86,129.81,15.94858541]
[1725875999637,45.0,129.85,129.81,15.94858541]
[1725876000138,45.0,129.85,129.76,45.0]
[1725876000440,45.0,129.85,129.81,15.94858541]
[1725876002022,15.8994,129.86,129.81,15.94858541]
[1725876002431,15.8994,129.86,129.83,15.94858541]
[1725876003545,37.55992491,129.89,129.76,45.0]
[1725876003546,37.55992491,129.89,129.85,15.94858541]
[1725876004846,45.25882491,129.89,129.76,6.5]
[1725876005037,52.6994,129.88,129.77,20.0]
[1725876005339,21.5942,129.87,129.81,15.94858541]
[1725876005514,45.0,129.86,129.81,15.94858541]
[1725876008031,21.5942,129.87,129.83,15.94858541]
[1725876008235,15.5839,129.87,129.83,15.94858541]
[1725876008546,37.55992491,129.89,129.85,15.94858541]
[1725876009253,37.55992491,129.89,129.83,15.94858541]
[1725876009941,45.0,129.88,129.83,15.94858541]
[1725876010142,37.55992491,129.89,129.83,15.94858541]
[1725876011531,45.0,129.88,129.83,15.94858541]
[1725876012741,37.55992491,129.89,129.85,15.94858541]
[1725876017422,37.55992491,129.89,129.87,15.94858541]
[1725876019850,21.9167,129.93,129.87,15.94858541]
[1725876019851,15.8239,129.93,129.87,15.94858541]
[1725876020071,15.8239,129.93,129.85,6.4942]
[1725876020241,15.8239,129.93,129.87,15.94858541]
[1725876021140,45.0,129.92,129.87,15.94858541]
[1725876022050,15.8239,129.93,129.87,15.94858541]
[1725876023223,15.8239,129.93,129.89,15.94858541]
[1725876024046,15.8239,129.93,129.87,15.94858541]
[1725876025528,15.8239,129.93,129.89,15.94858541]
[1725876028330,43.61480019,129.95,129.89,15.94858541]
[1725876028531,65.0,129.94,129.89,15.94858541]
[1725876029153,45.0,129.94,129.91,15.94858541]
[1725876029855,45.0,129.95,129.91,15.94858541]
[1725876040839,36.95260043,129.97,129.91,15.94858541]
[1725876041559,7.6931,129.99,129.93,15.94858541]
[1725876041761,40.3968396,129.99,129.93,15.94858541]
[1725876042583,20.0,129.98,129.93,15.94858541]
[1725876051744,20.0,129.99,129.93,15.94858541]
[1725876051952,20.0,129.99,129.95,15.94858541]
[1725876052144,30.39889824,130.0,129.95,15.94858541]
[1725876054565,38.09139824,130.0,129.9,21.1333]
[1725876054739,45.0,129.99,129.91,20.0]
[1725876054942,45.0,129.99,129.92,15.94858541]
[1725876055164,52.6929,129.99,129.91,20.0]
[1725876055372,52.6929,129.99,129.92,15.94858541]
[1725876055942,45.0,129.99,129.92,15.94858541]
[1725876056775,7.6945,129.97,129.9,21.1333]
[1725876056942,45.0,129.96,129.9,21.1333]
[1725876057269,52.6946,129.96,129.9,21.1333]
[1725876057596,20.0,129.95,129.9,15.0332]
[1725876057744,45.0,129.94,129.9,15.0332]
[1725876058271,20.0,129.95,129.9,30.98178541]
[1725876058447,20.0,129.96,129.9,30.98178541]
[1725876058771,45.0,129.95,129.9,30.98178541]
[1725876061269,45.0,129.95,129.88,15.94858541]
[1725876061675,45.0,129.95,129.87,22.5358]
[1725876061676,52.6954,129.95,129.87,22.5358]
[1725876061849,52.6954,129.95,129.88,15.94858541]
[1725876062250,45.0,129.95,129.88,15.94858541]
[1725876067577,45.0,129.95,129.87,22.5358]
[1725876067578,45.0,129.95,129.89,15.94858541]
[1725876073394,20.0,129.96,129.89,15.94858541]
[1725876074393,45.0,129.95,129.89,15.94858541]
[1725876075191,45.0,129.95,129.87,22.5358]
[1725876075393,45.0,129.95,129.88,15.94858541]
[1725876076893,45.0,129.95,129.9,15.94858541]
[1725876080190,20.0,129.96,129.9,15.94858541]
[1725876081209,20.0,129.96,129.92,15.94858541]
[1725876087409,20.0,129.96,129.9,15.94858541]
[1725876096521,20.0,129.96,129.87,22.5358]
[1725876096705,66.5094,129.95,129.88,35.94858541]
[1725876097504,74.2047,129.95,129.84,21.9815]
[1725876097820,20.0,129.94,129.86,15.94858541]
[1725876098022,45.0,129.93,129.86,15.94858541]
[1725876098206,74.2047,129.95,129.9,15.94858541]
[1725876098207,66.5094,129.95,129.9,15.94858541]
[1725876098413,15.026,129.95,129.9,15.94858541]
[1725876099192,15.026,129.95,129.92,15.94858541]
[1725876099592,15.026,129.95,129.88,15.3191]
[1725876099797,15.026,129.95,129.91,15.94858541]
[1725876100612,27.74025296,129.97,129.93,15.94858541]
[1725876101218,21.8091,129.98,129.93,15.94858541]
[1725876101525,15.766,129.98,129.93,15.94858541]
[1725876103093,15.766,129.98,129.95,15.94858541]
[1725876103304,33.66358267,130.01,129.95,15.94858541]
[1725876104324,27.60258267,130.01,129.99,15.94858541]
[1725876105618,6.3675,130.06,129.99,15.94858541]
[1725876107238,20.0,130.05,129.99,15.94858541]
[1725876112917,45.0,130.04,129.99,15.94858541]
[1725876122537,45.0,130.04,129.97,22.7285]
[1725876122831,15.5043,130.02,129.94,15.0705]
[1725876123042,45.0,130.01,129.94,31.01908541]
[1725876123217,65.0,130.01,129.94,31.01908541]
[1725876129143,72.6917,130.01,129.94,31.01908541]
[1725876134039,72.6917,130.01,129.94,15.0705]
[1725876134340,65.0,130.01,129.94,15.0705]
[1725876134933,7.6926,130.0,129.94,15.0705]
[1725876135241,65.0,129.99,129.93,6.4421]
[1725876136344,65.0,129.99,129.91,15.3817]
[1725876136550,7.6935,129.98,129.91,15.3817]
[1725876136743,65.0,129.97,129.91,15.3817]
[1725876154843,72.6945,129.97,129.91,15.3817]
[1725876156762,65.0,129.97,129.91,15.3817]
[1725876165057,20.0,129.97,129.91,15.3817]
[1725876165365,27.6935,129.98,129.91,15.3817]
[1725876166566,45.0,129.97,129.91,15.3817]
[1725876166867,20.0,129.96,129.91,15.3817]
[1725876167062,45.0,129.95,129.91,15.3817]
[1725876167362,7.6933,129.99,129.91,31.33028541]
[1725876167549,7.6924,130.0,129.91,31.33028541]
[1725876167754,20.0,129.99,129.91,31.33028541]
[1725876168054,20.0,129.99,129.93,15.94858541]
[1725876168248,20.0,130.0,129.93,15.94858541]
[1725876169346,20.0,130.0,129.94,16.4491]
[1725876169568,20.0,130.01,129.94,16.4491]
[1725876170854,45.0,130.0,129.94,16.4491]
[1725876171161,45.0,130.0,129.92,6.0493]
[1725876171162,7.6944,129.97,129.92,6.0493]
[1725876171472,65.0,129.96,129.88,6.2624]
[1725876171643,73.83548728,129.96,129.88,6.2624]
[1725876172043,7.6958,129.94,129.88,6.2624]
[1725876172242,65.0,129.93,129.88,6.2624]
[1725876175160,7.6972,129.92,129.88,6.2624]
[1725876175360,45.0,129.91,129.88,6.2624]
[1725876175757,45.0,129.92,129.88,6.2624]
[1725876186177,52.6974,129.92,129.88,6.2624]
[1725876186383,20.0,129.91,129.88,6.2624]
[1725876186558,45.0,129.9,129.88,6.2624]
[1725876188277,45.0,129.9,129.87,15.8801]
[1725876189571,45.0,129.9,129.85,6.1984]
[1725876190975,52.6982,129.9,129.85,6.1984]
[1725876191381,45.0,129.9,129.85,6.1984]
[1725876193483,52.6984,129.9,129.85,6.1984]
[1725876193684,75.93866263,129.9,129.84,16.6231]
[1725876193867,7.6994,129.88,129.84,16.6231]
[1725876194074,45.0,129.87,129.84,16.6231]
[1725876195155,52.7,129.87,129.81,21.6143]
[1725876195976,20.0,129.86,129.81,21.6143]
[1725876196173,45.0,129.85,129.81,15.1905]
[1725876196374,45.0,129.85,129.78,22.7448]
[1725876196758,74.72287176,129.85,129.78,22.7448]
[1725876197266,82.42437176,129.85,129.78,22.7448]
[1725876198674,74.72287176,129.85,129.78,22.7448]
[1725876200778,74.72287176,129.85,129.72,21.5154]
[1725876200970,7.7025,129.83,129.74,15.94858541]
[1725876201285,45.0,129.82,129.74,15.94858541]
[1725876202267,45.0,129.82,129.75,20.0]
[1725876204767,45.0,129.82,129.75,15.94858541]
[1725876206597,45.0,129.82,129.74,15.94858541]
[1725876206767,45.0,129.82,129.75,20.0]
[1725876207775,45.0,129.82,129.72,21.5154]
[1725876207974,20.0,129.81,129.72,21.5154]
[1725876208191,70.69974096,129.8,129.7,15.94858541]
[1725876208367,70.69974096,129.8,129.69,21.5989]
[1725876208368,30.905,129.77,129.69,21.5989]
[1725876208564,65.0,129.76,129.69,21.5989]
[1725876209269,65.0,129.76,129.69,15.3899]
[1725876212169,89.12780963,129.76,129.68,15.94858541]
[1725876213598,7.7082,129.74,129.63,22.4958]
[1725876213779,45.0,129.73,129.64,15.94858541]
[1725876213973,45.0,129.73,129.66,15.94858541]
[1725876213974,87.64419864,129.73,129.66,15.94858541]
[1725876214174,95.35259864,129.73,129.64,15.94858541]
[1725876214392,23.2249,129.72,129.64,15.94858541]
[1725876214602,65.0,129.71,129.64,15.94858541]
[1725876214969,65.0,129.71,129.66,15.94858541]
[1725876215172,22.64419864,129.73,129.68,15.94858541]
[1725876216087,22.64419864,129.73,129.7,15.94858541]
[1725876216888,22.64419864,129.73,129.63,22.4958]
[1725876217092,22.64419864,129.73,129.67,15.94858541]
[1725876217596,45.0,129.72,129.67,15.94858541]
[1725876218795,22.64419864,129.73,129.69,15.94858541]
[1725876221001,22.64419864,129.73,129.71,15.94858541]
[1725876221382,15.691,129.79,129.71,15.94858541]
[1725876221577,15.691,129.79,129.75,15.94858541]
[1725876221783,15.691,129.82,129.75,15.94858541]
[1725876222102,23.394,129.82,129.75,15.94858541]
[1725876223289,7.7036,129.81,129.75,15.94858541]
[1725876223499,23.394,129.82,129.75,15.94858541]
[1725876223703,45.0,129.81,129.69,21.3213]
[1725876223875,45.0,129.81,129.71,15.94858541]
[1725876223876,7.7049,129.79,129.71,15.94858541]
[1725876224081,45.0,129.78,129.71,15.94858541]
[1725876224702,7.706,129.77,129.71,15.94858541]
[1725876224995,45.0,129.76,129.71,15.94858541]
[1725876225177,45.0,129.76,129.69,31.16798541]
[1725876225178,52.7067,129.76,129.69,31.16798541]
[1725876225505,60.691,129.76,129.69,31.16798541]
[1725876225682,60.691,129.76,129.69,15.94858541]
[1725876226204,60.691,129.76,129.67,34.32797967]
[1725876227276,60.691,129.76,129.69,34.32797967]
[1725876228600,60.691,129.76,129.66,21.3213]
[1725876228813,27.7073,129.75,129.66,21.3213]
[1725876229103,45.0,129.74,129.67,34.32797967]
[1725876231790,45.0,129.74,129.63,22.3037]
[1725876232007,45.0,129.74,129.62,0.8449741]
[1725876232008,15.6336,129.71,129.62,0.8449741]
[1725876232305,7.7108,129.69,129.62,0.8449741]
[1725876232600,20.0,129.68,129.62,0.8449741]
[1725876232801,45.0,129.67,129.62,0.8449741]
[1725876233203,52.7119,129.67,129.62,0.8449741]
[1725876233381,45.0,129.67,129.62,0.8449741]
[1725876234091,20.0,129.7,129.62,0.8449741]
[1725876234281,45.0,129.69,129.62,0.8449741]
[1725876234478,20.0,129.68,129.62,0.8449741]
[1725876234709,45.0,129.67,129.62,0.8449741]
[1725876235909,20.0,129.68,129.63,34.32797967]
[1725876236098,20.0,129.68,129.62,0.8449741]
[1725876236099,20.0,129.7,129.62,0.8449741]
[1725876236414,45.79938475,129.7,129.62,0.8449741]
[1725876236598,7.7107,129.69,129.62,0.8449741]
[1725876236787,38.08928475,129.7,129.62,0.8449741]
[1725876236788,27.7115,129.68,129.62,0.8449741]
[1725876236989,7.7115,129.68,129.62,0.8449741]
[1725876237304,7.7107,129.69,129.62,0.8449741]
[1725876237489,45.0,129.67,129.62,0.8449741]
[1725876238890,22.685,129.66,129.62,0.8449741]
[1725876239094,65.0,129.65,129.62,0.8449741]
[1725876239296,115.0,129.65,129.62,0.8449741]
[1725876239494,65.0,129.65,129.62,0.8449741]
[1725876239710,72.7135,129.65,129.62,0.8449741]
[1725876240502,20.0,129.65,129.62,0.8449741]
[1725876240700,34.01692247,129.66,129.62,0.8449741]
[1725876241007,17.58612247,129.66,129.62,0.8449741]
[1725876243317,45.0,129.65,129.62,0.8449741]
[1725876245098,17.58612247,129.66,129.62,35.17295377]
[1725876245301,15.3118,129.7,129.62,35.17295377]
[1725876245599,30.7337,129.73,129.64,34.32797967]
[1725876245822,23.025,129.73,129.64,34.32797967]
[1725876246114,30.7334,129.73,129.64,34.32797967]
[1725876246308,23.025,129.73,129.66,34.32797967]
[1725876246499,16.4474,129.73,129.66,34.32797967]
[1725876247415,16.00368683,129.74,129.66,34.32797967]
[1725876247416,16.00368683,129.74,129.68,34.32797967]
[1725876249008,20.0,129.73,129.68,34.32797967]
[1725876252233,20.0,129.73,129.66,15.5925]
[1725876252432,45.0,129.72,129.66,15.5925]
[1725876256420,45.0,129.72,129.67,34.32797967]
[1725876256624,45.0,129.72,129.63,22.9593]
[1725876256808,20.0,129.71,129.62,35.17295377]
[1725876257009,52.7102,129.7,129.62,35.17295377]
[1725876257321,20.0,129.69,129.62,35.17295377]
[1725876257630,45.0,129.68,129.62,35.17295377]
[1725876258019,45.0,129.68,129.62,0.8449741]
[1725876259715,45.0,129.68,129.62,35.17295377]
[1725876260109,16.364,129.7,129.62,0.8449741]
[1725876260310,65.0,129.69,129.62,0.8449741]
[1725876261118,65.0,129.69,129.62,35.17295377]
[1725876265232,72.711,129.69,129.62,35.17295377]
[1725876265530,72.711,129.69,129.62,0.8449741]
[1725876269207,65.0,129.69,129.62,35.17295377]
[1725876269411,45.0,129.69,129.63,15.1377]
[1725876269610,16.86663552,129.71,129.64,34.32797967]
[1725876270235,16.86663552,129.71,129.66,34.32797967]
[1725876270609,15.3337,129.74,129.66,34.32797967]
[1725876270813,6.4328,129.76,129.68,34.32797967]
[1725876271337,15.3337,129.77,129.7,34.32797967]
[1725876271714,23.71087794,129.79,129.7,34.32797967]
[1725876272012,23.71087794,129.79,129.72,34.32797967]
[1725876273733,17.27807794,129.79,129.72,34.32797967]
[1725876274210,17.27807794,129.79,129.71,42.87904667]
[1725876275249,20.0,129.78,129.71,42.87904667]
[1725876275615,45.0,129.77,129.71,42.87904667]
[1725876276042,20.0,129.78,129.71,42.87904667]
[1725876279643,15.3337,129.8,129.71,42.87904667]
[1725876279644,20.0,129.79,129.71,42.87904667]
[1725876279823,45.0,129.78,129.71,42.87904667]
[1725876281212,20.0,129.79,129.73,42.87904667]
[1725876282244,20.0,129.81,129.73,42.87904667]
[1725876282418,45.0,129.8,129.73,42.87904667]
[1725876291756,45.0,129.8,129.74,22.9288]
[1725876292041,20.0,129.81,129.74,22.9288]
[1725876292259,20.0,129.82,129.74,22.9288]
[1725876292424,45.0,129.81,129.74,22.9288]
[1725876292757,20.0,129.8,129.74,22.9288]
[1725876293451,16.62232847,129.83,129.77,42.87904667]
[1725876293626,16.108,129.87,129.77,42.87904667]
[1725876294040,16.108,129.87,129.79,42.87904667]
[1725876294233,16.108,129.87,129.79,34.26577089]
[1725876296137,20.0,129.86,129.77,34.26577089]
[1725876296753,45.0,129.85,129.77,34.26577089]
[1725876297043,20.0,129.84,129.77,34.26577089]
[1725876297234,45.0,129.83,129.77,34.26577089]
[1725876298020,20.0,129.84,129.79,34.26577089]
[1725876298227,20.0,129.86,129.79,34.26577089]
[1725876298425,20.0,129.86,129.81,34.26577089]
[1725876298731,20.0,129.86,129.79,50.57837089]
[1725876299633,45.0,129.85,129.79,50.57837089]
[1725876301649,45.0,129.85,129.79,34.26577089]
[1725876302954,45.0,129.85,129.77,34.26577089]
[1725876303252,20.0,129.84,129.77,34.26577089]
[1725876303447,45.0,129.83,129.77,34.26577089]
[1725876303830,20.0,129.84,129.77,34.26577089]
[1725876304029,20.0,129.86,129.77,34.26577089]
[1725876304229,45.0,129.85,129.77,34.26577089]
[1725876304431,20.0,129.84,129.77,34.26577089]
[1725876305651,20.0,129.84,129.75,16.2576]
[1725876305652,20.0,129.84,129.81,34.26577089]
[1725876305841,19.21670162,129.88,129.81,34.26577089]
[1725876306953,19.21670162,129.88,129.83,34.26577089]
[1725876307455,19.21670162,129.88,129.81,50.87807089]
[1725876307750,19.21670162,129.88,129.81,16.6123]
[1725876307948,19.21670162,129.88,129.79,40.38457089]
[1725876308260,65.0,129.87,129.79,6.1188]
[1725876309440,65.0,129.87,129.79,40.38457089]
[1725876310051,65.0,129.87,129.81,34.26577089]
[1725876311760,65.0,129.87,129.79,40.38457089]
[1725876321136,65.0,129.87,129.79,34.26577089]
[1725876321444,7.7013,129.85,129.75,6.4293]
[1725876321657,45.0,129.84,129.76,54.26577089]
[1725876321852,45.0,129.85,129.76,54.26577089]
[1725876324232,19.21670162,129.88,129.82,34.26577089]
[1725876324651,19.21670162,129.88,129.8,6.4084]
[1725876324652,19.21670162,129.88,129.84,34.26577089]
[1725876324935,19.21670162,129.88,129.85,1.54008158]
[1725876325144,19.21670162,129.88,129.84,34.26577089]
[1725876326543,19.21670162,129.88,129.82,34.26577089]
[1725876330576,19.21670162,129.88,129.84,34.26577089]
[1725876333065,19.21670162,129.88,129.82,34.26577089]
[1725876333291,45.0,129.87,129.82,34.26577089]
[1725876337765,19.21670162,129.88,129.82,34.26577089]
[1725876337971,19.21670162,129.88,129.84,34.26577089]
[1725876345293,19.21670162,129.88,129.79,6.15172289]
[1725876345471,19.21670162,129.88,129.84,34.26577089]
[1725876349595,19.21670162,129.88,129.86,34.26577089]
[1725876350478,19.21670162,129.88,129.79,12.64402289]
[1725876350680,19.21670162,129.88,129.83,34.26577089]
[1725876351602,19.21670162,129.88,129.8,20.0]
[1725876351603,19.21670162,129.88,129.81,34.26577089]
[1725876351811,15.6969,129.87,129.82,20.0]
[1725876353474,15.6969,129.87,129.81,34.26577089]
[1725876360602,15.6969,129.87,129.83,34.26577089]
[1725876360903,19.21670162,129.88,129.85,34.26577089]
[1725876366408,19.21670162,129.88,129.87,34.26577089]
[1725876367801,19.21670162,129.88,129.85,34.26577089]
[1725876369126,19.21670162,129.88,129.79,6.15172289]
[1725876369418,19.21670162,129.88,129.81,34.26577089]
[1725876369810,19.21670162,129.88,129.83,34.26577089]
[1725876371597,19.21670162,129.88,129.85,34.26577089]
[1725876374527,19.21670162,129.88,129.87,34.26577089]
[1725876374700,15.1786,129.93,129.87,99.26577089]
[1725876375018,15.1786,129.93,129.9,34.26577089]
[1725876376028,6.3707,129.95,129.9,34.26577089]
[1725876378736,6.3707,129.95,129.88,34.26577089]
[1725876379037,14.066,129.95,129.88,34.26577089]
[1725876379210,45.0,129.94,129.88,34.26577089]
[1725876380906,6.3707,129.95,129.88,34.26577089]
[1725876381611,6.3707,129.95,129.9,34.26577089]
[1725876382840,6.3707,129.95,129.88,34.26577089]
[1725876383554,22.15364611,129.99,129.85,34.26577089]
[1725876383555,22.15364611,129.99,129.94,68.53154178]
[1725876383845,22.15364611,129.99,129.93,16.3584]
[1725876383846,16.0579,130.03,129.98,34.26577089]
[1725876384004,16.0579,130.03,129.95,87.30575186]
[1725876384199,16.0579,130.03,130.0,34.26577089]
[1725876384408,6.4425,130.04,130.01,1.53815822]
[1725876384609,23.02618095,130.08,130.02,68.53154178]
[1725876384813,23.02618095,130.08,130.01,6.2044]
[1725876384814,0.8449741,130.08,130.01,6.2044]
[1725876385112,0.8449741,130.08,130.02,34.26577089]
[1725876385304,0.8449741,130.08,130.04,34.26577089]
[1725876385711,0.8449741,130.08,130.06,34.26577089]
[1725876386627,0.8449741,130.08,130.02,34.26577089]
[1725876388406,20.8449741,130.08,130.02,34.26577089]
[1725876388753,0.8449741,130.08,130.07,34.26577089]
[1725876389034,0.8449741,130.08,130.05,34.26577089]
[1725876389439,0.8449741,130.08,130.03,34.26577089]
[1725876390910,0.8449741,130.08,130.05,34.26577089]
[1725876392952,72.4368741,130.21,130.07,34.26577089]
[1725876393245,50.0,130.19,130.08,34.26577089]
[1725876393450,6.514,130.16,130.07,34.26577089]
[1725876393626,15.4899,130.15,130.07,34.26577089]
[1725876394349,45.0,130.14,130.07,34.26577089]
[1725876394554,20.0,130.13,130.07,34.26577089]
[1725876394752,45.0,130.12,130.07,34.26577089]
[1725876395050,20.0,130.13,130.07,34.26577089]
[1725876395232,20.0,130.14,130.07,34.26577089]
[1725876395550,45.0,130.13,130.02,21.7037]
[1725876395757,45.0,130.13,130.06,34.26577089]
[1725876396237,45.0,130.13,130.06,49.75396206]
[1725876399432,20.0,130.14,130.06,49.75396206]
[1725876399632,6.0218,130.13,130.01,10.05006866]
[1725876399843,70.0,130.14,129.99,49.75396206]
[1725876399844,6.0218,130.1,129.99,49.75396206]
[1725876400044,7.687,130.09,129.99,49.75396206]
[1725876400360,38.28207674,130.14,130.06,49.75396206]
[1725876400523,28.9848,130.14,130.06,49.75396206]
[1725876400723,7.6848,130.13,130.04,49.75396206]
[1725876400948,7.6847,130.13,130.04,49.75396206]
[1725876401532,28.9847,130.14,130.04,49.75396206]
[1725876401759,45.0,130.13,130.04,49.75396206]
[1725876402055,20.0,130.12,130.04,49.75396206]
[1725876402258,45.0,130.11,130.04,49.75396206]
[1725876402428,20.0,130.12,130.04,49.75396206]
[1725876402825,45.0,130.11,130.04,49.75396206]
[1725876405835,7.687,130.09,130.0,49.75396206]
[1725876406157,50.0,130.07,129.96,56.23966206]
[1725876406363,7.6899,130.04,129.96,49.75396206]
[1725876406747,45.0,130.03,129.96,49.75396206]
[1725876407262,52.6905,130.03,129.96,49.75396206]
[1725876407650,7.6911,130.02,129.94,49.75396206]
[1725876407954,45.0,130.01,129.94,49.75396206]
[1725876408367,52.6911,130.02,129.94,49.75396206]
[1725876409080,16.72911378,130.1,130.01,49.75396206]
[1725876409249,6.1654,130.09,130.03,49.75396206]
[1725876412074,20.0,130.08,130.03,49.75396206]
[1725876414173,45.0,130.07,130.01,49.75396206]
[1725876416563,45.0,130.07,130.03,49.75396206]
[1725876416966,24.86305242,130.12,130.05,49.75396206]
[1725876417174,20.0,130.11,130.05,49.75396206]
[1725876417679,27.6862,130.11,130.03,49.75396206]
[1725876418375,45.0,130.1,130.03,49.75396206]
[1725876418680,20.0,130.09,130.03,49.75396206]
[1725876419479,45.0,130.08,130.03,49.75396206]
[1725876419772,45.0,130.08,130.01,49.75396206]
[1725876422063,6.3019,130.07,130.01,39.84332967]
[1725876422258,45.0,130.06,130.01,39.84332967]
[1725876426189,6.3019,130.07,130.03,39.84332967]
[1725876426482,20.0,130.09,130.03,39.84332967]
[1725876426690,27.6869,130.09,130.03,39.84332967]
[1725876427687,45.0,130.08,130.03,39.84332967]
[1725876429994,45.0,130.08,130.04,22.6952]
[1725876430293,22.4062,130.16,130.06,47.56732967]
[1725876430475,22.4062,130.16,130.08,39.84332967]
[1725876431689,77.6834,130.15,130.06,7.724]
[1725876431992,70.0,130.15,130.04,39.84332967]
[1725876432206,7.6853,130.12,130.04,39.84332967]
[1725876432368,65.0,130.11,130.04,39.84332967]
[1725876432776,45.0,130.11,130.04,39.84332967]
[1725876435470,16.6412,130.19,130.11,7.724]
[1725876435780,16.6412,130.19,130.1,39.84332967]
[1725876435984,16.6412,130.19,130.05,22.2388]
[1725876436301,16.6412,130.19,130.11,39.84332967]
[1725876436489,16.6412,130.19,130.06,65.0]
[1725876436669,16.6412,130.19,130.11,39.84332967]
[1725876436871,24.3225,130.19,130.11,39.84332967]
[1725876437584,7.6817,130.18,130.06,65.0]
[1725876437780,7.6824,130.17,130.08,39.84332967]
[1725876437995,45.0,130.16,130.08,39.84332967]
[1725876438375,45.0,130.16,130.05,22.2388]
[1725876438376,45.0,130.16,130.1,39.84332967]
[1725876438580,45.0,130.17,130.1,39.84332967]
[1725876441323,52.6823,130.17,130.1,39.84332967]
[1725876445207,0.8449741,130.21,130.16,39.84332967]
[1725876445413,0.8449741,130.21,130.18,39.84332967]
[1725876445799,0.8449741,130.21,130.16,39.84332967]
[1725876447205,0.8449741,130.21,130.14,39.84332967]
[1725876448017,45.8449741,130.21,130.14,39.84332967]
[1725876448221,53.5249741,130.21,130.14,39.84332967]
[1725876448393,0.8449741,130.21,130.2,39.84332967]